Workbook

Sheet ÚVOD
B2: ÚVOD
B4: Vítejte v nástroji vytvořeném k ocenění novostaveb rodinných domů. Cena je pouze informační - propočtová. Než začnete pracovat, prosím, povolte užívání maker. Slouží pro správnou funkci nástroje.
B8: Povolení maker: 1. Klikněte na kartu Soubor. 2. Klikněte na položku Možnosti. 3. Klikněte na položku Centrum zabezpečení a následně na Nastavení Centra zabezpečení. 4. Následně klikněte na položku Nastavení maker. 5. Zvolte možnost Povolení všech maker a potvrďte kliknutím na OK.
B10: Cenová úroveň dat v nástroji je rok 2019 až 2021. Cenové ukazatele jsou vytvořené na základě rozpočtů reálných staveb rodinných domů.
B11: Cena vytvořená pomocí tohoto nástroje je pouze za objekt rodinného domu. Cena nezahrnuje náklady na zařízení interiéru, vestavěného nábytku, krby, komunikace, přípojky, areálové rozvody, oplocení a další vedlejší objekty, sadové úpravy a demolice.
B14: Postupujte v nástroji po jednotlivých listech.
B15: Upravovat nebo vyplňovat lze pouze žlutě podbarvení buňky. | E15: Příklad
B16: Ostatní buňky jsou uzamčeny.
B17: V nástroji se lze pohybovat pomocí tlačítek, překlikáváním mezi jednotlivými listy v dolní části Excelu a kliknutím na modře zbarvený a podrtrhnutý text.
B19: První list je STAVBA. Zde vyplňte údaje stavby, vstupní hodnoty stavby potřebné pro ocenění pomocí cenových ukazatelů. Na názvy vstupních hodnot, které jsou modře zabarvené a podtrhnuté, lze kliknout pro získání nápovědy. Dále v tomto listu vyberete z rozbalovacího seznamu sazbu DPH a doporučenou výši procenta pro výpočet nákladů na umístění stavby, kompletační činnosti a rezervy. Pokud Vám sazba DPH nebo doporučená výše jednotlivých procent nevyhovuje, vpište vlastní výši procenta do následujícího řádku. Pozor! Pokud bude vepsaná vlastní výše, bude přednostě brána do výpočtu. Pro výpočet pomocí procenta vybraného z rozevíracího seznamu vlastní hodnotu smažte.
B30: Následuje list REKAPITULACE. Jedná se o oficiální výstup nástroje. V úvodu jsou shrnuty údaje stavby. Následuje rekapitulace nákladů na stavební objekt po jednotlivých částech. List pokračuje výpočtem výše nákladů na umístění stavby, kompletační činnosti a rezervy. V poslední části je celková cena. Jedná se o součet nákladů na stavební objekt, nákladů na umístění stavby, kopletační činnost a rezervy. Tato celková cena je bez DPH. V poslední řadě je vypočtena Celková cena s DPH.
B39: Další listy HSV - 1, HSV - 2, PSV - 1, PSV - 2, PSV - 3 a M jsou určeny pro výpočet cen jednotlivých částí. V horní části každého listu je rekapitulace daného listu. U názvů jednotlivých částí pomocí tlačítka vyberte, zda chcete část ocenit pomocí cenového ukazatele, nebo zadat vlastní celkovou cenu, anebo si přejete mít část bez ceny. Druhou možností výběru výpočtu ceny u každé části je z rozbalovacího seznamu.
B46: Poslední list je VLASTNÍ CENA. Do tohoto listu lze zadat celková vlastní cena za části, které nástroj zatím neobsahuje, ale jsou součástí objektu rodinného domu. Například cenu za povlakové podlahy, krby apod.

Sheet STAVBA
B2: ÚDAJE STAVBY
B5: Název stavby: | C5: Praha - 6
B7: Název objektu: | C7: Rodinný dům
B9: Datum: | C9: 2021-12-16
B11: Zpracovatel: | C11: Reblová
B14: VSTUPNÍ HODNOTY STAVBY
B17: Obestavěný prostor: | C17: 914 | E17: m3
B18: Zastavěná plocha všech podlaží: | C18: 252 | E18: m2
B19: Zastavěná plocha ploché střechy: | C19: 146 | E19: m2
B20: Zastavěná plocha šikmé střechy: | C20: 0 | E20: m2
B21: Plocha terasy: | C21: 0 | E21: m2
B22: Počet koupelen: | C22: 2 | E22: ks
B23: Počet vnitřních dveří: | C23: 10 | E23: ks
B24: Počet vstupních dveří: | C24: 2 | E24: ks
B25: Plocha vnějších výplní: | C25: 44.8 | E25: m2
B26: Počet garážových vrat: | C26: 1 | E26: ks
B29: SAZBA DPH
B32: Sazba DPH pro výpočet: | C32: 21 | E32: %
B33: Vlastní sazba DPH: | E33: %
B36: NÁKLADY NA UMÍSTĚNÍ STAVBY
B39: Odhad doporučený: | C39: 5 | E39: %
B40: Vlastní: | E40: %
B43: KOMPLETAČNÍ ČINNOST
B46: Odhad doporučený: | C46: 0.8 | E46: %
B47: Vlastní: | E47: %
B50: REZERVA
B53: Odhad doporučený: | C53: 6.5 | E53: %
B54: Vlastní: | E54: %

Sheet REKAPITULACE
B2: REKAPITULACE ÚDAJŮ STAVBY
B5: Název stavby: | C5: =STAVBA!C5 -> Praha - 6
B7: Název objektu: | C7: =STAVBA!C7 -> Rodinný dům
B9: Datum: | C9: =STAVBA!C9 -> 2021-12-16
B11: Zpracovatel: | C11: =STAVBA!C11 -> Reblová
B14: REKAPITULACE NÁKLADŮ NA STAVEBNÍ OBJEKT
B16: NÁKLADY CELKEM: | C16: =C17+C27+C46+C55 -> 8359242.984 | D16: Kč
B17: CELKEM HSV: | C17: =SUM(C18:C26) -> 3784107.995 | D17: Kč
B18: 1 - ZEMNÍ PRÁCE: | C18: ='HSV - 1'!C6 -> 0 | D18: Kč
B19: 2 - ZÁKLADY: | C19: ='HSV - 1'!C7 -> 478657.7341 | D19: Kč
B20: 3 - SVISLÉ KONSTRUKCE: | C20: ='HSV - 1'!C8 -> 802223.7573 | D20: Kč
B21: 4 - VODOROVNÉ KONSTRUKCE: | C21: ='HSV - 1'!C9 -> 733638.5047 | D21: Kč
B22: 5 - SCHODIŠTĚ: | C22: ='HSV - 2'!C6 -> 146466 | D22: Kč
B23: 6 - VNITŘNÍ OMÍTKY: | C23: ='HSV - 2'!C7 -> 218403 | D23: Kč
B24: 7 - VNĚJŠÍ ÚPRAVA POVRCHŮ: | C24: ='HSV - 2'!C8 -> 646535.9986 | D24: Kč
B25: 8 - HRUBÁ PODLAHA: | C25: ='HSV - 2'!C9 -> 201502 | D25: Kč
B26: 9 - PŘESUN HMOT HSV: | C26: ='HSV - 2'!C10 -> 556681 | D26: Kč
B27: CELKEM PSV: | C27: =SUM(C28:C45) -> 2732195.823 | D27: Kč
B28: 10 - IZOLACE PROTI VODĚ ZÁKLADŮ: | C28: ='PSV - 1'!C6 -> 115322 | D28: Kč
B29: 11 - PLOCHÁ STŘECHA: | C29: ='PSV - 1'!C7 -> 906076 | D29: Kč
B30: 12 - ŠIKMÁ STŘECHA: | C30: ='PSV - 1'!C8 -> 0 | D30: Kč
B31: 13 - SDK PODHLED PODKROVÍ ŠIKMÝCH STŘECH: | C31: ='PSV - 1'!C9 -> 0 | D31: Kč
B32: 14 - SDK PODHLED: | C32: ='PSV - 1'!C10 -> 100828 | D32: Kč
B33: 15 - DŘEVĚNÉ TERASY NA STŘECHÁCH: | C33: ='PSV - 2'!C6 -> 0 | D33: Kč
B34: 16 - VNĚJŠÍ VÝPLNĚ OTVORŮ: | C34: ='PSV - 2'!C7 -> 650944 | D34: Kč
B35: 17 - VNĚJŠÍ PŘEDOKENNÍ ŽALUZIE: | C35: ='PSV - 2'!C8 -> 0 | D35: Kč
B36: 18 - VSTUPNÍ DVEŘE: | C36: ='PSV - 2'!C9 -> 233274 | D36: Kč
B37: 19 - GARÁŽOVÁ VRATA: | C37: ='PSV - 2'!C10 -> 50858 | D37: Kč
B38: 20 - VNITŘNÍ VÝPLNĚ OTVORŮ: | C38: ='PSV - 2'!C11 -> 205190 | D38: Kč
B39: 21 - PODLAHY Z KERAMICKÉ DLAŽBY: | C39: ='PSV - 3'!C6 -> 115588 | D39: Kč
B40: 22 - PODLAHY DŘEVĚNÉ: | C40: ='PSV - 3'!C7 -> 205564 | D40: Kč
B41: 23 - PODLAHY LITÉ: | C41: ='PSV - 3'!C8 -> 31115 | D41: Kč
B42: 24 - KERAMICKÉ OBKLADY: | C42: ='PSV - 3'!C9 -> 80681.82258 | D42: Kč
B43: 25 - FASÁDNÍ CIHELNÝ OBKLAD: | C43: ='PSV - 3'!C10 -> 0 | D43: Kč
B44: 26 - OBKLAD ALUCOBOND: | C44: ='PSV - 3'!C11 -> 0 | D44: Kč
B45: 27 - MALBY | C45: ='PSV - 3'!C12 -> 36755 | D45: Kč
B46: CELKEM M: | C46: =SUM(C47:C54) -> 1842939.167 | D46: Kč
B47: 28 - SILNOPROUD: | C47: =M!C6 -> 308549 | D47: Kč
B48: 29 - SLABOPROUD: | C48: =M!C7 -> 273716 | D48: Kč
B49: 30 - ZDRAVOTECHNICKÉ INSTALACE: | C49: =M!C8 -> 93194 | D49: Kč
B50: 31 - ZAŘIZOVACÍ PŘEDMĚTY ZTI: | C50: =M!C9 -> 168520 | D50: Kč
B51: 32 - ÚSTŘEDNÍ TOPENÍ: | C51: =M!C10 -> 459357.167 | D51: Kč
B52: 33 - ROZVODY TOPENÍ A OTOPNÁ TĚLESA: | C52: =M!C11 -> 268328 | D52: Kč
B53: 34 - VZDUCHOTECHNIKA: | C53: =M!C12 -> 53628 | D53: Kč
B54: 35 - CHLAZENÍ: | C54: =M!C13 -> 217647 | D54: Kč
B55: CELKOVÁ VLASTNÍ CENA ZA DALŠÍ ČÁSTI: | C55: ='VLASTNÍ CENA'!E11:E11 -> 0 | D55: Kč
B57: NÁKLADY NA UMÍSTĚNÍ STAVBY
B60: Náklady na stavební objekt celkem: | C60: =C16 -> 8359242.984 | D60: Kč
B61: Odhad: | C61: =IF(STAVBA!C40="",STAVBA!C39,STAVBA!C40) -> 5 | D61: %
B62: Výše odhadu: | C62: =C60*C61% -> 417962.1492 | D62: Kč
B65: KOMPLETAČNÍ ČINNOST
B68: Náklady na stavební objekt celkem: | C68: =$C$16 -> 8359242.984 | D68: Kč
B69: Odhad: | C69: =IF(STAVBA!C47="",STAVBA!C46,STAVBA!C47) -> 0.8 | D69: %
B70: Výše odhadu: | C70: =C68*C69% -> 66873.94387 | D70: Kč
B73: REZERVA
B76: Náklady na stavební objekt celkem: | C76: =$C$16 -> 8359242.984 | D76: Kč
B77: Odhad: | C77: =IF(STAVBA!C54="",STAVBA!C53,STAVBA!C54) -> 6.5 | D77: %
B78: Výše odhadu: | C78: =C76*C77% -> 543350.794 | D78: Kč
B81: CELKEM CENA
B84: Náklady na stavební objekt celkem: | C84: =$C$16 -> 8359242.984 | D84: Kč
B85: Náklady na umístění stavby: | C85: =C62 -> 417962.1492 | D85: Kč
B86: Kompletační činnost: | C86: =C70 -> 66873.94387 | D86: Kč
B87: Rezerva: | C87: =C78 -> 543350.794 | D87: Kč
B88: CELKEM BEZ DPH: | C88: =SUM(C84:C87) -> 9387429.871 | D88: Kč
B90: Sazba DPH: | C90: =IF(STAVBA!C33="",STAVBA!C32,STAVBA!C33) -> 21 | D90: %
B91: Výše daně: | C91: =C88*C90% -> 1971360.273 | D91: Kč
B93: CELEKM S DPH: | C93: =C91+C88 -> 11358790.14 | D93: Kč

Sheet HSV - 1
B2: REKAPITULACE NÁKLADŮ LISTU HSV - 1
B5: CELKEM HSV - 1: | C5: =SUM(C6:C9) -> 2014519.996 | D5: Kč
B6: 1 - ZEMNÍ PRÁCE: | C6: =C37 -> 0 | D6: Kč
B7: 2 - ZÁKLADY: | C7: =C63 -> 478657.7341 | D7: Kč
B8: 3 - SVISLÉ KONSTRUKCE: | C8: =C90 -> 802223.7573 | D8: Kč
B9: 4 - VODOROVNÉ KONSTRUKCE: | C9: =C116 -> 733638.5047 | D9: Kč
B12: ZEMNÍ PRÁCE
B14: Při výpočtu pomocí cenového ukazatele jsou na výběr dvě varianty zemních prací – zemní práce u podsklepených objektů nebo z části v terénu zapuštěné objekty a zemní práce u nepodsklepených objektů.
B18: Cena u obou variant zhrnuje náklady na sejmutí ornice, výkopové práce, nakládání výkopu, vodorovné a svislé přemístění zeminy, uložení na mezideponii, zpětný zásyp a uložení zeminy na skládce.
B23: Výpočet ceny: | C23: Bez ceny
B24: Varianta: | C24: Nepodsklepený objekt
B27: Zastavěná plocha všech podlaží: | C27: =STAVBA!$C$18 -> 252 | D27: m2
B28: Obestavěný prostor: | C28: =STAVBA!$C$17 -> 914 | D28: m3
B30: Cenový ukazatel/ZPVP: | C30: =IF(C24=List1!D1,List1!D3,IF('HSV - 1'!C24=List1!D2,List1!D5,0)) -> 657.6505804 | D30: Kč/m2
B31: Cenový ukazatel/OP: | C31: =IF(C24=List1!D1,List1!D4,IF('HSV - 1'!C24=List1!D2,List1!D6,0)) -> 181 | D31: Kč/m3
B33: Cena za ZPVP: | C33: =IF(C23="Cenový ukazatel",C27*C30,"") ->  | D33: Kč | E33: Celková vlastní cena: | G33: Kč
B34: Cena za OP: | C34: =IF(C23="Cenový ukazatel",C28*C31,"") ->  | D34: Kč
B35: Cena průměr: | C35: =IF(C23="Cenový ukazatel",(C33+C34)/COUNT(C33:C34),"") ->  | D35: Kč
B37: Celková cena za zemní práce: | C37: =IF(C23="Cenový ukazatel",C35,IF(C23="Vlastní cena",F33,0)) -> 0 | D37: Kč
B39: ZÁKLADY
B41: Při výpočtu pomocí cenového ukazatele jsou na výběr dvě varianty základů – základové pasy z prostého betonu s železobetonovou deskou a základové pasy železobetonové nebo ze ztraceného bednění s železobetonovou deskou.
B45: Celková cena u varianty Pasy z prostého betonu zahrnuje beton, bednění, podkladní beton a štěrkopískový podsyp. Celková cena u varianty Pasy z železobetonu nebo ztraceného bednění zahrnuje beton, bednění, výztuž, podkladní beton, štěrkopískový podsyp, případně tvárnice ztraceného bednění.
B50: Výpočet ceny: | C50: Cenový ukazatel
B51: Varianta: | C51: Pasy z železobetonu/ztracené bednění, železobetonová deska
B53: Zastavěná plocha všech podlaží: | C53: =STAVBA!$C$18 -> 252 | D53: m2
B54: Obestavěný prostor: | C54: =STAVBA!$C$17 -> 914 | D54: m3
B56: Cenový ukazatel/ZPVP: | C56: =IF(C51=List1!F1,List1!F3,IF('HSV - 1'!C51=List1!F2,List1!F5,0)) -> 1895.006974 | D56: Kč/m2
B57: Cenový ukazatel/OP: | C57: =IF(C51=List1!F1,List1!F4,IF('HSV - 1'!C51=List1!F2,List1!F6,0)) -> 524.9165324 | D57: Kč/m3
B59: Cena za ZPVP: | C59: =IF(C50="Cenový ukazatel",C53*C56,"") -> 477541.7575 | D59: Kč | E59: Celková vlastní cena: | G59: Kč
B60: Cena za OP: | C60: =IF(C50="Cenový ukazatel",C54*C57,"") -> 479773.7106 | D60: Kč
B61: Cena průměr: | C61: =IF(C50="Cenový ukazatel",(C59+C60)/COUNT(C59:C60),"") -> 478657.7341 | D61: Kč
B63: Celková cena za základy: | C63: =IF(C50="Cenový ukazatel",C61,IF(C50="Vlastní cena",F59,0)) -> 478657.7341 | D63: Kč
B65: SVISLÉ KONSTRUKCE
B67: Při výpočtu pomocí cenového ukazatele jsou na výběr tři varianty svislých konstrukcí – nosné stěny Porotherm a příčky pórobeton, nosné stěny železobetonové a příčky Porotherm a poslední variantou jsou nosné stěny Porotherm s příčkami z Porothermu.
B71: U každé z variant je vyjmenovaná kombinace primárního materiálu nosných stěn a příček. Cena všech variant zahrnuje taktéž cenu za SDK stěny a předstěny, přizdívky a železobetonové svislé konstrukce. Tyto materiály se v objektu nachází pouze lokálně. Součástí ceny všech variant jsou náklady na zdivo, bednění, beton a výztuž svislých betonových zdí, atik a sloupů, překlady, přizdívky, obezdívky van, SDK stěny a předstěny.
B76: Výpočet ceny: | C76: Cenový ukazatel
B77: Varianta: | C77: N: Porotherm, P: Porotherm
B80: Zastavěná plocha všech podlaží: | C80: =STAVBA!$C$18 -> 252 | D80: m2
B81: Obestavěný prostor: | C81: =STAVBA!$C$17 -> 914 | D81: m3
B83: Cenový ukazatel/ZPVP: | C83: =IF(C77=List1!H1,List1!H4,IF('HSV - 1'!C77=List1!H2,List1!H6,IF(C77=List1!H3,List1!H8,0))) -> 3144.687199 | D83: Kč/m2
B84: Cenový ukazatel/OP: | C84: =IF(C77=List1!H1,List1!H5,IF('HSV - 1'!C77=List1!H2,List1!H7,IF(C77=List1!H3,List1!H9,0))) -> 888.3876811 | D84: Kč/m3
B86: Cena za ZPVP: | C86: =IF(C76="Cenový ukazatel",C80*C83,"") -> 792461.174 | D86: Kč | E86: Celková vlastní cena: | G86: Kč
B87: Cena za OP: | C87: =IF(C76="Cenový ukazatel",C81*C84,"") -> 811986.3405 | D87: Kč
B88: Cena průměr: | C88: =IF(C76="Cenový ukazatel",(C86+C87)/COUNT(C86:C87),"") -> 802223.7573 | D88: Kč
B90: Celková cena za svislé kon.: | C90: =IF(C76="Cenový ukazatel",C88,IF(C76="Vlastní cena",F86,0)) -> 802223.7573 | D90: Kč
B92: VODOROVNÉ KONSTRUKCE
B94: Při výpočtu pomocí cenového ukazatele je možná pouze jedna varianta vodorovných konstrukcí – železobetonová deska.
B98: Celková cena za železobetonovou desku zahrnuje náklady na beton, výztuž, bednění a podpěry stropních desek a nosníků, ocelové nosníky a bednění stropu z plechu. Součástí ceny nejsou náklady na železobetonové schodiště.
B103: Výpočet ceny: | C103: Cenový ukazatel
B104: Varianta: | C104: =List1!J1 -> Železobetonová deska
B106: Zastavěná plocha všech podlaží: | C106: =STAVBA!$C$18 -> 252 | D106: m2
B107: Obestavěný prostor: | C107: =STAVBA!$C$17 -> 914 | D107: m3
B109: Cenový ukazatel/ZPVP: | C109: =IF(C104=List1!J1,List1!J2,0) -> 2855 | D109: Kč/m2
B110: Cenový ukazatel/OP: | C110: =IF(C104=List1!J1,List1!J3,0) -> 818.1805355 | D110: Kč/m3
B112: Cena za ZPVP: | C112: =IF(C103="Cenový ukazatel",C106*C109,"") -> 719460 | D112: Kč | E112: Celková vlastní cena: | G112: Kč
B113: Cena za OP: | C113: =IF(C103="Cenový ukazatel",C107*C110,"") -> 747817.0094 | D113: Kč
B114: Cena průměr: | C114: =IF(C103="Cenový ukazatel",(C112+C113)/2,"") -> 733638.5047 | D114: Kč
B116: Celková cena za vodorovné kon.: | C116: =IF(C103="Cenový ukazatel",C114,IF(C103="Vlastní cena",F112,0)) -> 733638.5047 | D116: Kč

Sheet HSV - 2
B2: REKAPITULACE NÁKLADŮ LISTU HSV - 2
B5: CELKEM HSV - 2: | C5: =SUM(C6:C9) -> 1212906.999 | D5: Kč
B6: 5 - SCHODIŠTĚ: | C6: =C38 -> 146466 | D6: Kč
B7: 6 - VNITŘNÍ OMÍTKY: | C7: =C65 -> 218403 | D7: Kč
B8: 7 - VNĚJŠÍ ÚPRAVA POVRCHŮ: | C8: =C92 -> 646535.9986 | D8: Kč
B9: 8 - HRUBÁ PODLAHA: | C9: =C119 -> 201502 | D9: Kč
B10: 9 - PŘESUN HMOT HSV: | C10: =C145 -> 556681 | D10: Kč
B13: SCHODIŠTĚ
B15: Při výpočtu pomocí cenového ukazatele jsou na výběr tři varianty schodišť – železobetonové schodiště s dřevěným obložením a zábradlím, přímé ocelové schodiště s dřevěným obkladem a zábradlím a točité ocelové schodiště s dřevěným schodištěm a zábradlím.
B19: Všechny varianty obsahují cenu za nosnou konstrukci schodiště, dřevěný obklad stupňů a zábradlí. Cena za železobetonové schodiště zahrnuje beton, bednění, výztuž a podpěry.
B24: Výpočet ceny: | C24: Vlastní cena
B25: Varianta: | C25: Žb schodiště, dřevěný obklad stupňů, zábradlí
B28: Zastavěná plocha všech podlaží: | C28: =STAVBA!$C$18 -> 252 | D28: m2
B29: Obestavěný prostor: | C29: =STAVBA!$C$17 -> 914 | D29: m3
B31: Cenový ukazatel/ZPVP: | C31: =IF(C25=List1!D10,List1!D13,IF(C25=List1!D11,List1!D15,IF(C25=List1!D12,List1!D17,0))) -> 2042 | D31: Kč/m2
B32: Cenový ukazatel/OP: | C32: =IF(C25=List1!D10,List1!D14,IF(C25=List1!D11,List1!D16,IF(C25=List1!D12,List1!D18,0))) -> 558 | D32: Kč/m3
B34: Cena za ZPVP: | C34: =IF(C24="Cenový ukazatel",C28*C31,"") ->  | D34: Kč | E34: Celková vlastní cena: | F34: 146466 | G34: Kč
B35: Cena za OP: | C35: =IF(C24="Cenový ukazatel",C29*C32,"") ->  | D35: Kč
B36: Cena průměr: | C36: =IF(C24="Cenový ukazatel",(C34+C35)/COUNT(C34:C35),"") ->  | D36: Kč
B38: Celková cena za schodiště: | C38: =IF(C24="Cenový ukazatel",C36,IF(C24="Vlastní cena",F34,0)) -> 146466 | D38: Kč
B40: VNITŘNÍ OMÍTKY
B42: Při výpočtu pomocí cenového ukazatele je možná pouze jedna varianta vnitřních omítek – vápenocemenotová a sádorvá omítka.
B46: Cena varianty zahrnuje materiál a provedení omítek stěn, stropů a pomocné lešení.
B51: Výpočet ceny: | C51: Cenový ukazatel
B52: Varianta: | C52: =List1!F10 -> Vápenocementová a sádrová omítka
B55: Zastavěná plocha všech podlaží: | C55: =STAVBA!$C$18 -> 252 | D55: m2
B56: Obestavěný prostor: | C56: =STAVBA!$C$17 -> 914 | D56: m3
B58: Cenový ukazatel/ZPVP: | C58: =IF(C52=List1!F10,List1!F11,0) -> 852 | D58: Kč/m2
B59: Cenový ukazatel/OP: | C59: =IF(C52=List1!F10,List1!F12,0) -> 243 | D59: Kč/m3
B61: Cena za ZPVP: | C61: =IF(C51="Cenový ukazatel",C55*C58,"") -> 214704 | D61: Kč | E61: Celková vlastní cena: | G61: Kč
B62: Cena za OP: | C62: =IF(C51="Cenový ukazatel",C56*C59,"") -> 222102 | D62: Kč
B63: Cena průměr: | C63: =IF(C51="Cenový ukazatel",(C61+C62)/COUNT(C61:C62),"") -> 218403 | D63: Kč
B65: Celková cena za vnitřní úpravu povrchů: | C65: =IF(C51="Cenový ukazatel",C63,IF(C51="Vlastní cena",F61,0)) -> 218403 | D65: Kč
B67: VNĚJŠÍ ÚPRAVA POVRCHŮ
B69: Při výpočtu pomocí cenového ukazatele jsou na výběr dvě varianty vnější úpravy povrchů – kontaktní zateplovací systém s omítkou nebo pouze fasádní omítka.
B73: Varianta kontaktního zateplovacího systému zahrnuje cenu za tepelnou izolaci, sklovláknité pletivo, rohové profily s tkaninou, omítkové začišťovací profily, hmoždinky a fasádní omítku. Varianta s fasádní omítkou zahrnuje pouze cenu za fasádní omítku. Obě varianty taktéž zahrnuji cenu za fasádní lešení.
B78: Výpočet ceny: | C78: Cenový ukazatel
B79: Varianta: | C79: Kontaktní zateplovací systém, omítka
B82: Zastavěná plocha všech podlaží: | C82: =STAVBA!$C$18 -> 252 | D82: m2
B83: Obestavěný prostor: | C83: =STAVBA!$C$17 -> 914 | D83: m3
B85: Cenový ukazatel/ZPVP: | C85: =IF(C79=List1!H10,List1!H12,IF(C79=List1!H11,List1!H14,0)) -> 2555.199212 | D85: Kč/m2
B86: Cenový ukazatel/OP: | C86: =IF(C79=List1!H10,List1!H13,IF(C79=List1!H11,List1!H15,0)) -> 710.242665 | D86: Kč/m3
B88: Cena za ZPVP: | C88: =IF(C78="Cenový ukazatel",C82*C85,"") -> 643910.2015 | D88: Kč | E88: Celková vlastní cena: | G88: Kč
B89: Cena za OP: | C89: =IF(C78="Cenový ukazatel",C83*C86,"") -> 649161.7958 | D89: Kč
B90: Cena průměr: | C90: =IF(C78="Cenový ukazatel",(C88+C89)/COUNT(C88:C89),"") -> 646535.9986 | D90: Kč
B92: Celková cena za vnější úpravu povrchů: | C92: =IF(C78="Cenový ukazatel",C90,IF(C78="Vlastní cena",F88,0)) -> 646535.9986 | D92: Kč
B94: HRUBÁ PODLAHA
B96: Při výpočtu pomocí cenového ukazatele jsou na výběr dvě varianty hrubých podlah – betonová mazanina vyztužená kari sítí nebo skelným vláknem s tepelnou izolací a betonová mazanina s tepelnou izolací.
B100: Cena obou variant zahrnuje cenu za betonovou mazaninu jakékoliv výšky, lokálně cementový potěr, PE folie, obvodová dilatace a tepelné izolace. Jedna z variant navíc obsahuje výztuž ze skelného vlákna nebo kari sítě.
B105: Výpočet ceny: | C105: Cenový ukazatel
B106: Varianta: | C106: Betonová mazanina, kari síť/skelné vlákno a tepelná izolace
B109: Zastavěná plocha všech podlaží: | C109: =STAVBA!$C$18 -> 252 | D109: m2
B110: Obestavěný prostor: | C110: =STAVBA!$C$17 -> 914 | D110: m3
B112: Cenový ukazatel/ZPVP: | C112: =IF(C106=List1!J10,List1!J12,IF(C106=List1!J11,List1!J14,0)) -> 736 | D112: Kč/m2
B113: Cenový ukazatel/OP: | C113: =IF(C106=List1!J10,List1!J13,IF(C106=List1!J11,List1!J15,0)) -> 238 | D113: Kč/m3
B115: Cena za ZPVP: | C115: =IF(C105="Cenový ukazatel",C109*C112,"") -> 185472 | D115: Kč | E115: Celková vlastní cena: | G115: Kč
B116: Cena za OP: | C116: =IF(C105="Cenový ukazatel",C110*C113,"") -> 217532 | D116: Kč
B117: Cena průměr: | C117: =IF(C105="Cenový ukazatel",(C115+C116)/COUNT(C115:C116),"") -> 201502 | D117: Kč
B119: Celková cena za hrubou podlahu: | C119: =IF(C105="Cenový ukazatel",C117,IF(C105="Vlastní cena",F115,0)) -> 201502 | D119: Kč
B121: PŘESUN HMOT HSV
B123: Přesun hmot má při výpočtu pomocí cenového ukazatele pouze jednu variantu.
B127: Cena zahrnuje vnitrostaveništní dopravu materiálu, polotovarů a výrobků.
B132: Výpočet ceny: | C132: Cenový ukazatel
B133: Varianta: | C133: =List1!L10 -> Přesun hmot HSV
B135: Zastavěná plocha všech podlaží: | C135: =STAVBA!$C$18 -> 252 | D135: m2
B136: Obestavěný prostor: | C136: =STAVBA!$C$17 -> 914 | D136: m3
B138: Cenový ukazatel/ZPVP: | C138: =IF(C133=List1!L10,List1!L12,0) -> 2173 | D138: Kč/m2
B139: Cenový ukazatel/OP: | C139: =IF(C133=List1!L10,List1!L13,0) -> 619 | D139: Kč/m3
B141: Cena za ZPVP: | C141: =IF(C132="Cenový ukazatel",C135*C138,"") -> 547596 | D141: Kč | E141: Celková vlastní cena: | G141: Kč
B142: Cena za OP: | C142: =IF(C132="Cenový ukazatel",C136*C139,"") -> 565766 | D142: Kč
B143: Cena průměr: | C143: =IF(C132="Cenový ukazatel",(C141+C142)/COUNT(C141:C142),"") -> 556681 | D143: Kč
B145: Celková cena za zpřesun hmot HSV: | C145: =IF(C132="Cenový ukazatel",C143,IF(C132="Vlastní cena",F141,0)) -> 556681 | D145: Kč

Sheet PSV - 1
B2: REKAPITULACE NÁKLADŮ LISTU PSV - 1
B5: CELKEM PSV - 1: | C5: =SUM(C6:C9) -> 1021398 | D5: Kč
B6: 10 - IZOLACE PROTI VODĚ ZÁKLADŮ: | C6: =C38 -> 115322 | D6: Kč
B7: 11 - PLOCHÁ STŘECHA: | C7: =C61 -> 906076 | D7: Kč
B8: 12 - ŠIKMÁ STŘECHA: | C8: =C83 -> 0 | D8: Kč
B9: 13 - SDK PODHLED PODKROVÍ ŠIKMÝCH STŘECH: | C9: =C105 -> 0 | D9: Kč
B10: 14 - SDK PODHLED | C10: =C131 -> 100828 | D10: Kč
B13: IZOLACE PROTI VODĚ ZÁKLADŮ
B15: Při výpočtu pomocí cenového ukazatele jsou na výběr dvě varianty izolací proti vodě základů – izolace objektu podsklepeného nebo z části v terénu zapuštěném a nebo izolace nepodsklepeného objektu.
B19: Cena za izolace proti vodě základů zahrnuje náklady na veškeré izolace základů a přesun hmot.
B24: Výpočet ceny: | C24: Cenový ukazatel
B25: Varianta: | C25: Nepodsklepený objekt
B28: Zastavěná plocha všech podlaží: | C28: =STAVBA!$C$18 -> 252 | D28: m2
B29: Obestavěný prostor: | C29: =STAVBA!$C$17 -> 914 | D29: m3
B31: Cenový ukazatel/ZPVP: | C31: =IF(C25=List1!D20,List1!D22,IF(C25=List1!D21,List1!D24,0)) -> 451 | D31: Kč/m2
B32: Cenový ukazatel/OP: | C32: =IF(C25=List1!D20,List1!D23,IF(C25=List1!D21,List1!D25,0)) -> 128 | D32: Kč/m3
B34: Cena za ZPVP: | C34: =IF(C24="Cenový ukazatel",C28*C31,"") -> 113652 | D34: Kč | E34: Celková vlastní cena: | G34: Kč
B35: Cena za OP: | C35: =IF(C24="Cenový ukazatel",C29*C32,"") -> 116992 | D35: Kč
B36: Cena průměr: | C36: =IF(C24="Cenový ukazatel",(C34+C35)/COUNT(C34:C35),"") -> 115322 | D36: Kč
B38: Celková cena za izolace proti vodě: | C38: =IF(C24="Cenový ukazatel",C36,IF(C24="Vlastní cena",F34,0)) -> 115322 | D38: Kč
B40: PLOCHÁ STŘECHA
B42: Při výpočtu pomocí cenového ukazatele jsou na výběr dvě varianty plochých střech – plochá střecha s fóliovou krytinou nebo plochá střecha s vrstvou substrátu pro extenzivní zeleň.
B46: Cena obou variant obsahuje tepelné izolace, mazaninu nebo polystyren beton, hydroizolace, klempířské prvky, výlezy na střechu, OSB bednění a přesun hmot. Varianta střechy s fóliovou krytinou zahrnuje dále cenu za krytinu a lokální násyp z kačírku na krytině. Varianta střechy s vrstvou substrátu zahrnuje navíc cenu za substrát a lokální násyp z kačírku.
B51: Výpočet ceny: | C51: Cenový ukazatel
B52: Varianta: | C52: Plochá střecha se substrátem pro extenzivní střechu
B55: Zastavěná plocha ploché střechy: | C55: =STAVBA!$C$19 -> 146 | D55: m2
B57: Cenový ukazatel/ZPPS | C57: =IF(C52=List1!F20,List1!F22,IF(C52=List1!F21,List1!F24,0)) -> 6206 | D57: Kč/m2
B59: Cena za ZPPS: | C59: =IF(C51="Cenový ukazatel",C55*C57,"") -> 906076 | D59: Kč | E59: Celková vlastní cena: | G59: Kč
B61: Celková cena za plochou střechu: | C61: =IF(C51="Cenový ukazatel",C59,IF(C51="Vlastní cena",F59,0)) -> 906076 | D61: Kč
B63: ŠIKMÁ STŘECHA
B65: Při výpočtu pomocí cenového ukazatele je na výběr pouze jedna varianta šikmých střech.
B69: Cena zahrnuje tepelnou izolaci, hydroizolaci, OSB desky, latě, hranoly, krovy, ocelovou konstrukci pro krov, klempířské prvky, stoupací plošiny a přesun hmot.
B74: Výpočet ceny: | C74: Bez ceny
B75: Varianta: | C75: =List1!H20 -> Šikmá střecha
B77: Zastavěná plocha šikmé střechy: | C77: =STAVBA!$C$20 -> 0 | D77: m2
B79: Cenový ukazatel/ZPŠS: | C79: =IF(C75=List1!H20,List1!H22,0) -> 8916 | D79: Kč/m2
B81: Cena za ZPŠS: | C81: =IF(C74="Cenový ukazatel",C77*C79,"") ->  | D81: Kč | E81: Celková vlastní cena: | G81: Kč
B83: Celková cena za šikmou střechu: | C83: =IF(C74="Cenový ukazatel",C81,IF(C74="Vlastní cena",F81,0)) -> 0 | D83: Kč
B85: SDK PODHLED PODKROVÍ ŠIKMÝCH STŘECH
B87: Při výpočtu pomocí cenového ukazatele je na výběr pouze jedna varianta SDK podkrovního podhledu.
B91: Cena obsahuje SDK desky, ocelové profily, pomocný materiál pro zabudování a přesun hmot.
B96: Výpočet ceny: | C96: Bez ceny
B97: Varianta: | C97: =List1!J20 -> Podkrovní podhled SDK
B99: Zastavěná plocha šikmé střechy: | C99: =STAVBA!$C$20 -> 0 | D99: m2
B101: Cenový ukazatel/ZPŠS: | C101: =IF(C97=List1!J20,List1!J22,0) -> 1115 | D101: Kč/m2
B103: Cena za ZPŠS: | C103: =IF(C96="Cenový ukazatel",C99*C101,"") ->  | D103: Kč | E103: Celková vlastní cena: | G103: Kč
B105: Celková cena za šikmou střechu: | C105: =IF(C96="Cenový ukazatel",C103,IF(C96="Vlastní cena",F103,0)) -> 0 | D105: Kč
B107: SDK PODHLED
B109: Při výpočtu pomocí cenového ukazatele je na výběr pouze jedna varianta SDK podhledů.
B113: Součástí ceny je SDK deska, tepelná izolace, nosný profil, SDK čelo a přesun hmot.
B118: Výpočet ceny: | C118: Cenový ukazatel
B119: Varianta: | C119: =List1!D27 -> Podhled SDK
B121: Zastavěná plocha všech podlaží: | C121: =STAVBA!$C$18 -> 252 | D121: m2
B122: Obestavěný prostor: | C122: =STAVBA!$C$17 -> 914 | D122: m3
B124: Cenový ukazatel/ZPVP: | C124: =IF(C119=List1!D27,List1!D28,0) -> 394 | D124: Kč/m2
B125: Cenový ukazatel/OP: | C125: =IF(C119=List1!D27,List1!D29,0) -> 112 | D125: Kč/m3
B127: Cena za ZPVP: | C127: =IF(C118="Cenový ukazatel",C121*C124,"") -> 99288 | D127: Kč | E127: Celková vlastní cena: | G127: Kč
B128: Cena za OP: | C128: =IF(C118="Cenový ukazatel",C122*C125,"") -> 102368 | D128: Kč
B129: Cena průměr: | C129: =IF(C118="Cenový ukazatel",(C127+C128)/COUNT(C127:C128),"") -> 100828 | D129: Kč
B131: Celková cena za zpřesun hmot HSV: | C131: =IF(C118="Cenový ukazatel",C129,IF(C118="Vlastní cena",F127,0)) -> 100828 | D131: Kč

Sheet PSV - 2
B2: REKAPITULACE NÁKLADŮ LISTU PSV - 2
B5: CELKEM PSV - 2: | C5: =SUM(C6:C11) -> 1140266 | D5: Kč
B6: 15 - DŘEVĚNÉ TERASY NA STŘECHÁCH: | C6: =C34 -> 0 | D6: Kč
B7: 16 - VNĚJŠÍ VÝPLNĚ OTVORŮ: | C7: =C56 -> 650944 | D7: Kč
B8: 17 - VNĚJŠÍ PŘEDOKENNÍ ŽALUZIE: | C8: =C83 -> 0 | D8: Kč
B9: 18 - VSTUPNÍ DVEŘE: | C9: =C105 -> 233274 | D9: Kč
B10: 19 - GARÁŽOVÁ VRATA: | C10: =C127 -> 50858 | D10: Kč
B11: 20 - VNITŘNÍ VÝPLNĚ OTVORŮ: | C11: =C149 -> 205190 | D11: Kč
B14: DŘEVĚNÉ TERASY NA STŘECHÁCH
B16: Při výpočtu pomocí cenového ukazatele je na výběr pouze jedna varianta dřevěných teras na střeše.
B20: Cena zahrnuje dřevěnou podlahu terasy, nátěr, nosný rošt a přesun hmot.
B25: Výpočet ceny: | C25: Bez ceny
B26: Varianta: | C26: Dřevěná terasa na střeše
B28: Plocha teras: | C28: =STAVBA!$C$21 -> 0 | D28: m2
B30: Cenový ukazatel/m2 terasy: | C30: =IF(C26=List1!F27,List1!F28,0) -> 4068 | D30: Kč/m2
B32: Cena za plochu terasy: | C32: =IF(C25="Cenový ukazatel",C28*C30,"") ->  | D32: Kč | E32: Celková vlastní cena: | G32: Kč
B34: Celková cena za dřevěné terasy: | C34: =IF(C25="Cenový ukazatel",C32,IF(C25="Vlastní cena",F32,0)) -> 0 | D34: Kč
B36: VNĚJŠÍ VÝPLNĚ OTVORŮ
B38: Při výpočtu pomocí cenového ukazatele je na výběr ze tří variant vnějších výplní otvorů - dřevěné, hliníkové nebo dřevohliníkové a plastové.
B42: Jednotlivé varianty se liší použitým materiálem na vnější výplně otvorů, cena zahrnuje dodávku a montáž výplní včetně parapetů.
B47: Výpočet ceny: | C47: Cenový ukazatel
B48: Varianta: | C48: Hliníkové/dřevohliníkové
B50: Plocha vnějších výplní otvorů: | C50: =STAVBA!$C$25 -> 44.8 | D50: m2
B52: Cenový ukazatel/PVVO | C52: =IF(C48=List1!H27,List1!H30,IF(C48=List1!H28,List1!H31,IF(C48=List1!H29,List1!H32,0))) -> 14530 | D52: Kč/m2
B54: Cena za PVVO: | C54: =IF(C47="Cenový ukazatel",C50*C52,"") -> 650944 | D54: Kč | E54: Celková vlastní cena: | G54: Kč
B56: Celková cena za vnější výplně otvorů: | C56: =IF(C47="Cenový ukazatel",C54,IF(C47="Vlastní cena",F54,0)) -> 650944 | D56: Kč
B58: VNĚJŠÍ PŘEDOKENNÍ ŽALUZIE
B60: Při výpočtu pomocí cenového ukazatele je na výběr pouze jedna varianta vnějších předokenních žaluzií - hliníkové vnější předokenní žaluzie.
B64: Cena zahrnuje dodávku a montáž vnějších hliníkových předokenních žaluzií.
B69: Výpočet ceny: | C69: Bez ceny
B70: Varianta: | C70: =List1!J27 -> Vnější hliníkové předokenní žaluzie
B73: Zastavěná plocha všech podlaží: | C73: =STAVBA!$C$18 -> 252 | D73: m2
B74: Obestavěný prostor: | C74: =STAVBA!$C$17 -> 914 | D74: m3
B76: Cenový ukazatel/ZPVP: | C76: =IF(C70=List1!J27,List1!J30,0) -> 516 | D76: Kč/m2
B77: Cenový ukazatel/OP: | C77: =IF(C70=List1!J27,List1!J31,0) -> 142 | D77: Kč/m3
B79: Cena za ZPVP: | C79: =IF(C69="Cenový ukazatel",C73*C76,"") ->  | D79: Kč | E79: Celková vlastní cena: | G79: Kč
B80: Cena za OP: | C80: =IF(C69="Cenový ukazatel",C74*C77,"") ->  | D80: Kč
B81: Cena průměr: | C81: =IF(C69="Cenový ukazatel",(C79+C80)/COUNT(C79:C80),"") ->  | D81: Kč
B83: Celková cena za předokenní žaluzie: | C83: =IF(C69="Cenový ukazatel",C81,IF(C69="Vlastní cena",F79,0)) -> 0 | D83: Kč
B85: VSTUPNÍ DVEŘE
B87: Při výpočtu pomocí cenového ukazatele je na výběr ze tří variant vstupních dveří - dřevěné, hliníkové a plastové.
B91: Cena zahnruje dodávku a montáž vstupních dveří.
B96: Výpočet ceny: | C96: Cenový ukazatel
B97: Varianta: | C97: Vstupní dveře - hliníkové
B99: Počet vstupních dveří: | C99: =STAVBA!$C$24 -> 2 | D99: ks
B101: Cenový ukazatel/ks | C101: =IF(C97=List1!L27,List1!L30,IF(C97=List1!L28,List1!L31,List1!L32)) -> 116637 | D101: Kč/ks
B103: Cena za vstupní dveře: | C103: =IF(C96="Cenový ukazatel",C99*C101,"") -> 233274 | D103: Kč | E103: Celková vlastní cena: | G103: Kč
B105: Celková cena za vstupní dveře: | C105: =IF(C96="Cenový ukazatel",C103,IF(C96="Vlastní cena",F103,0)) -> 233274 | D105: Kč
B107: GARÁŽOVÉ VRATA
B109: Při výpočtu pomocí cenového ukazatele je na výběr ze dvou variant garážových dveří - velká průmyslová vrata a standardní garážová vrata.
B113: Součástí ceny za garážová vrata je dodávka a montáž garážových vrat, sekční pohon a dálkové ovládání.
B118: Výpočet ceny: | C118: Cenový ukazatel
B119: Varianta: | C119: Standardní garážová vrata
B121: Počet garážových vrat: | C121: =STAVBA!$C$26 -> 1 | D121: ks
B123: Cenový ukazatel/ks | C123: =IF(C119=List1!P27,List1!P29,IF(C119=List1!P28,List1!P30,0)) -> 50858 | D123: Kč/ks
B125: Cena za garážové vrata: | C125: =IF(C118="Cenový ukazatel",C121*C123,"") -> 50858 | D125: Kč | E125: Celková vlastní cena: | G125: Kč
B127: Celková cena za garážové vrata: | C127: =IF(C118="Cenový ukazatel",C125,IF(C118="Vlastní cena",F125,0)) -> 50858 | D127: Kč
B129: VNITŘNÍ VÝPLNĚ OTVORŮ
B131: Při výpočtu pomocí cenového ukazatele je na výběr ze dvou variant vnitřních výplní otvorů - standardní a nadstandardní vnitřní dveře.
B135: Standardní vnitřní dveře zahrnují dodávku a montáž dveřního křídla plného lakovaného, včetně obložkové zárubně, prahu a kování. Nadstandardní vnitřní dveře zahrnují dodávku a montáž dveřního křídla plného se skrytou zárubní, včetně kování a prahu, nebo dřevěné posuvné dveře do pouzdra, včetně pouzdra, prahu a kování a nebo dveřních křídel masivních dýhovaných do masivní obložkové zárubně, včetně kování a prahu.
B140: Výpočet ceny: | C140: Cenový ukazatel
B141: Varianta: | C141: Vnitřní dveře standardní
B143: Počet vnitřních dveří: | C143: =STAVBA!$C$23 -> 10 | D143: ks
B145: Cenový ukazatel/ks | C145: =IF(C141=List1!T27,List1!T29,IF(C141=List1!T28,List1!T30,0)) -> 20519 | D145: Kč/ks
B147: Cena za vnitřní výplně: | C147: =IF(C140="Cenový ukazatel",C143*C145,"") -> 205190 | D147: Kč | E147: Celková vlastní cena: | G147: Kč
B149: Celková cena za vnitřní výplně: | C149: =IF(C140="Cenový ukazatel",C147,IF(C140="Vlastní cena",F147,0)) -> 205190 | D149: Kč

Sheet PSV - 3
B2: REKAPITULACE NÁKLADŮ LISTU PSV - 3
B5: CELKEM PSV - 3: | C5: =SUM(C6:C12) -> 469703.8226 | D5: Kč
B6: 21 - PODLAHY Z KERAMICKÉ DLAŽBY: | C6: =C36 -> 115588 | D6: Kč
B7: 22 - PODLAHY DŘEVĚNÉ: | C7: =C62 -> 205564 | D7: Kč
B8: 23 - PODLAHY LITÉ: | C8: =C88 -> 31115 | D8: Kč
B9: 24 - KERAMICKÉ OBKLADY: | C9: =C111 -> 80681.82258 | D9: Kč
B10: 25 - FASÁDNÍ CIHELNÝ OBKLAD: | C10: =C137 -> 0 | D10: Kč
B11: 26 - OBKLAD ALUCOBOND: | C11: =C164 -> 0 | D11: Kč
B12: 27 - MALBY | C12: =C190 -> 36755 | D12: Kč
B15: PODLAHY Z KERAMICKÉ DLAŽBY
B17: Při výpočtu pomocí cenového ukazatele je na výběr ze dvou variant keramických dlažeb - standardní a nadstandardní podlahy z keramické dlažby.
B21: Cena zahrnuje dodávku a montáž keramické dlažby a soklů, včetně potřebného materiálu pro zabudování, lokální hydroizolační stěrku pod dlažbu a přesun hmot. Standardní podlaha z keramické dlažby - formát keramické dlažby 60x60 cm, 40x40 cm, 30 x 30 cm a jakákoliv kombinace těchto rozměrů (60 x 30 cm apod.). Nadstandardní podlaha z keramické dlažby - jedna strana použité dlaždice je větší než 90 cm. Průměrná plocha keramické dlažby na koupelnu je 31 m2.
B26: Výpočet ceny: | C26: Cenový ukazatel
B27: Varianta: | C27: Podlahy z keramických dlaždic - standard
B30: Počet koupelen: | C30: =STAVBA!$C$22 -> 2 | D30: ks
B32: Cenový ukazatel/ks | C32: =IF(C27=List1!D33,List1!D35,IF(C27=List1!D34,List1!D36,0)) -> 57794 | D32: Kč/ks
B34: Cena za keramickou dlažbu: | C34: =IF(C26="Cenový ukazatel",C32*C30,"") -> 115588 | D34: Kč | E34: Celková vlastní cena: | G34: Kč
B36: Celková cena za keramickou dlažbu: | C36: =IF(C26="Cenový ukazatel",C34,IF(C26="Vlastní cena",F32,0)) -> 115588 | D36: Kč
B38: PODLAHY DŘEVĚNÉ
B40: Při výpočtu pomocí cenového ukazatele je na výběr pouze jedna varianta dřevěných podlah.
B44: Součástí ceny jsou podlahy z dřevěných lamel nebo vlysů, sokly, lepidlo a přesun hmot.
B49: Výpočet ceny: | C49: Cenový ukazatel
B50: Varianta: | C50: =List1!F33 -> Dřevěné podlahy
B52: Zastavěná plocha všech podlaží: | C52: =STAVBA!$C$18 -> 252 | D52: m2
B53: Obestavěný prostor: | C53: =STAVBA!$C$17 -> 914 | D53: m3
B55: Cenový ukazatel/ZPVP: | C55: =IF(C50=List1!F33,List1!F34,0) -> 790 | D55: Kč/m2
B56: Cenový ukazatel/OP: | C56: =IF(C50=List1!F33,List1!F35,0) -> 232 | D56: Kč/m3
B58: Cena za ZPVP: | C58: =IF(C49="Cenový ukazatel",C52*C55,"") -> 199080 | D58: Kč | E58: Celková vlastní cena: | G58: Kč
B59: Cena za OP: | C59: =IF(C49="Cenový ukazatel",C53*C56,"") -> 212048 | D59: Kč
B60: Cena průměr: | C60: =IF(C49="Cenový ukazatel",(C58+C59)/COUNT(C58:C59),"") -> 205564 | D60: Kč
B62: Celková cena za dřevěné podlahy: | C62: =IF(C49="Cenový ukazatel",C60,IF(C49="Vlastní cena",F58,0)) -> 205564 | D62: Kč
B64: PODLAHY LITÉ
B66: Při výpočtu pomocí cenového ukazatele je na výběr pouze jedna varianta litých podlah.
B70: Součástí ceny je litá stěrka nebo epoxidová stěrka nebo polyuretanová stěrka a přesun hmot.
B75: Výpočet ceny: | C75: Cenový ukazatel
B76: Varianta: | C76: =List1!H33 -> Lité podlahy
B78: Zastavěná plocha všech podlaží: | C78: =STAVBA!$C$18 -> 252 | D78: m2
B79: Obestavěný prostor: | C79: =STAVBA!$C$17 -> 914 | D79: m3
B81: Cenový ukazatel/ZPVP: | C81: =IF(C76=List1!H33,List1!H34,0) -> 120 | D81: Kč/m2
B82: Cenový ukazatel/OP: | C82: =IF(C76=List1!H33,List1!H35,0) -> 35 | D82: Kč/m3
B84: Cena za ZPVP: | C84: =IF(C75="Cenový ukazatel",C78*C81,"") -> 30240 | D84: Kč | E84: Celková vlastní cena: | G84: Kč
B85: Cena za OP: | C85: =IF(C75="Cenový ukazatel",C79*C82,"") -> 31990 | D85: Kč
B86: Cena průměr: | C86: =IF(C75="Cenový ukazatel",(C84+C85)/COUNT(C84:C85),"") -> 31115 | D86: Kč
B88: Celková cena za lité podlahy: | C88: =IF(C75="Cenový ukazatel",C86,IF(C75="Vlastní cena",F84,0)) -> 31115 | D88: Kč
B90: KERAMICKÉ OBKLADY
B92: Při výpočtu pomocí cenového ukazatele je na výběr ze dvou variant keramických obkladů - standardní a nadstandardní keramické obklady.
B96: Cena zahrnuje dodávku a montáž keramických obkladů, včetně potřebného materiálu pro zabudování, lokální hydroizolační stěrku pod obklad a přesun hmot. Standardní keramický obklad - formát keramického obkladu 60x60 cm, 40x40 cm, 30 x 30 cm a jakákoliv kombinace těchto rozměrů (60 x 30 cm apod.). Nadstandardní keramický obklad - jedna strana použitého obkladu je větší než 90 cm. Průměrná plocha keramické obkladu na koupelnu je 24 m2.
B101: Výpočet ceny: | C101: Cenový ukazatel
B102: Varianta: | C102: Keramické obklady - standard
B105: Počet koupelen: | C105: =STAVBA!$C$22 -> 2 | D105: ks
B107: Cenový ukazatel/ks | C107: =IF(C102=List1!J33,List1!J35,IF(C102=List1!J34,List1!J36,0)) -> 40340.91129 | D107: Kč/ks
B109: Cena za keramické obklady: | C109: =IF(C101="Cenový ukazatel",C105*C107,"") -> 80681.82258 | D109: Kč | E109: Celková vlastní cena: | G109: Kč
B111: Celková cena za keramické obklady: | C111: =IF(C101="Cenový ukazatel",C109,IF(C101="Vlastní cena",F109,0)) -> 80681.82258 | D111: Kč
B113: FASÁDNÍ CIHELNÝ OBKLAD
B115: Při výpočtu pomocí cenového ukazatele je na výběr pouze jedna varianta fasádního cihelného obkladu.
B119: Cena zahrnuje dodávku a montáž cihelného obkladu včetně pomocného materiálu a přesunu hmot.
B124: Výpočet ceny: | C124: Bez ceny
B125: Varianta: | C125: =List1!L33 -> Cihelný oklad
B127: Zastavěná plocha všech podlaží: | C127: =STAVBA!$C$18 -> 252 | D127: m2
B128: Obestavěný prostor: | C128: =STAVBA!$C$17 -> 914 | D128: m3
B130: Cenový ukazatel/ZPVP: | C130: =IF(C125=List1!L33,List1!L34,0) -> 1478 | D130: Kč/m2
B131: Cenový ukazatel/OP: | C131: =IF(C125=List1!L33,List1!L35,0) -> 392 | D131: Kč/m3
B133: Cena za ZPVP: | C133: =IF(C124="Cenový ukazatel",C127*C130,"") ->  | D133: Kč | E133: Celková vlastní cena: | G133: Kč
B134: Cena za OP: | C134: =IF(C124="Cenový ukazatel",C128*C131,"") ->  | D134: Kč
B135: Cena průměr: | C135: =IF(C124="Cenový ukazatel",(C133+C134)/COUNT(C133:C134),"") ->  | D135: Kč
B137: Celková cena za cihelný obklad: | C137: =IF(C124="Cenový ukazatel",C135,IF(C124="Vlastní cena",F133,0)) -> 0 | D137: Kč
B139: OBKLAD ALUCOBOND
B141: Při výpočtu pomocí cenového ukazatele je na výběr pouze jedna varianta Alucobond obkladu.
B145: Cena zahrnuje dodávku a montáž Alucobond obkladu na fasádu včetně přesunu hmot.
B150: Výpočet ceny: | C150: Bez ceny
B151: Varianta: | C151: =List1!O33 -> Venkovní obklad Alucobond
B154: Zastavěná plocha všech podlaží: | C154: =STAVBA!$C$18 -> 252 | D154: m2
B155: Obestavěný prostor: | C155: =STAVBA!$C$17 -> 914 | D155: m3
B157: Cenový ukazatel/ZPVP: | C157: =IF(C151=List1!O33,List1!O34,0) -> 1961 | D157: Kč/m2
B158: Cenový ukazatel/OP: | C158: =IF(C151=List1!O33,List1!O35,0) -> 632 | D158: Kč/m3
B160: Cena za ZPVP: | C160: =IF(C150="Cenový ukazatel",C154*C157,"") ->  | D160: Kč | E160: Celková vlastní cena: | G160: Kč
B161: Cena za OP: | C161: =IF(C150="Cenový ukazatel",C155*C158,"") ->  | D161: Kč
B162: Cena průměr: | C162: =IF(C150="Cenový ukazatel",(C160+C161)/COUNT(C160:C161),"") ->  | D162: Kč
B164: Celková cena za obklady Alucobond: | C164: =IF(C150="Cenový ukazatel",C162,IF(C150="Vlastní cena",F160,0)) -> 0 | D164: Kč
B166: MALBY
B168: Při výpočtu pomocí cenového ukazatele je na výběr pouze jedna varianta maleb - malby dvojnásobné bíle.
B172: Součástí ceny je provedení dvojnásobné bílé malby.
B177: Výpočet ceny: | C177: Cenový ukazatel
B178: Varianta: | C178: =List1!T33 -> Dvojnásobná bílá malba
B180: Zastavěná plocha všech podlaží: | C180: =STAVBA!$C$18 -> 252 | D180: m2
B181: Obestavěný prostor: | C181: =STAVBA!$C$17 -> 914 | D181: m3
B183: Cenový ukazatel/ZPVP: | C183: =IF(C178=List1!T33,List1!T34,0) -> 143 | D183: Kč/m2
B184: Cenový ukazatel/OP: | C184: =IF(C178=List1!T33,List1!T35,0) -> 41 | D184: Kč/m3
B186: Cena za ZPVP: | C186: =IF(C177="Cenový ukazatel",C180*C183,"") -> 36036 | D186: Kč | E186: Celková vlastní cena: | G186: Kč
B187: Cena za OP: | C187: =IF(C177="Cenový ukazatel",C181*C184,"") -> 37474 | D187: Kč
B188: Cena průměr: | C188: =IF(C177="Cenový ukazatel",(C186+C187)/COUNT(C186:C187),"") -> 36755 | D188: Kč
B190: Celková cena za malby: | C190: =IF(C177="Cenový ukazatel",C188,IF(C177="Vlastní cena",F186,0)) -> 36755 | D190: Kč

Sheet M
B2: REKAPITULACE NÁKLADŮ LISTU M
B5: CELKEM M: | C5: =SUM(C6:C11) -> 1571664.167 | D5: Kč
B6: 28 - SILNOPROUD: | C6: =C40 -> 308549 | D6: Kč
B7: 29 - SLABOPROUD: | C7: =C66 -> 273716 | D7: Kč
B8: 30 - ZDRAVOTECHNICKÉ INSTALACE: | C8: =C88 -> 93194 | D8: Kč
B9: 31 - ZAŘIZOVACÍ PŘEDMĚTY ZTI: | C9: =C110 -> 168520 | D9: Kč
B10: 32 - ÚSTŘEDNÍ TOPENÍ: | C10: =C136 -> 459357.167 | D10: Kč
B11: 33 - ROZVODY TOPENÍ A OTOPNÁ TĚLESA: | C11: =C162 -> 268328 | D11: Kč
B12: 34 - VZDUCHOTECHNIKA: | C12: =C188 -> 53628 | D12: Kč
B13: 35 - CHLAZENÍ: | C13: =C214 -> 217647 | D13: Kč
B16: SILNOPROUD
B18: Při výpočtu pomocí cenového ukazatele je na výběr pouze jedna varianta silnoproudu.
B22: Cena zahrnuje silnoproudé koncové elektrické prvky, rozvaděče, kabely, trasy, uzemnění a hromosvody. Svítidla nejsou součástí ceny vypočtené pomocí cenového ukazatele. Pro přípočet ceny za dodávku a montáž svítidel vyplňtě do pole u Celkové ceny za dodávku a montáž svítidel celkovou vlastní cenu za svítidla.
B27: Výpočet ceny: | C27: Cenový ukazatel
B28: Varianta: | C28: Silnoproud
B30: Zastavěná plocha všech podlaží: | C30: =STAVBA!$C$18 -> 252 | D30: m2
B31: Obestavěný prostor: | C31: =STAVBA!$C$17 -> 914 | D31: m3
B33: Cenový ukazatel/ZPVP: | C33: =IF(C28=List1!D37,List1!D38,0) -> 1212 | D33: Kč/m2
B34: Cenový ukazatel/OP: | C34: =IF(C28=List1!D37,List1!D39,0) -> 341 | D34: Kč/m3
B36: Cena za ZPVP: | C36: =IF(C27="Cenový ukazatel",C30*C33,"") -> 305424 | D36: Kč | E36: Celková vlastní cena: | G36: Kč
B37: Cena za OP: | C37: =IF(C27="Cenový ukazatel",C31*C34,"") -> 311674 | D37: Kč | E37: Celková cena za dodávku a montáž svítidel:
B38: Cena průměr: | C38: =IF(C27="Cenový ukazatel",(C36+C37)/COUNT(C36:C37),"") -> 308549 | D38: Kč | G38: Kč
B40: Celková cena za silnoproud: | C40: =IF(C27="Cenový ukazatel",C38,IF(C27="Vlastní cena",F36,0))+F38 -> 308549 | D40: Kč
B42: SLABOPROUD
B44: Při výpočtu pomocí cenového ukazatele je na výběr pouze jedna varianta slaboproudu.
B48: Součástí ceny za slaboproud jsou rozvaděče, CCTV, domácí telefon, anténa, EZS a EPS, data a slaboproudé rozvody.
B53: Výpočet ceny: | C53: Cenový ukazatel
B54: Varianta: | C54: Slaboproud
B56: Zastavěná plocha všech podlaží: | C56: =STAVBA!$C$18 -> 252 | D56: m2
B57: Obestavěný prostor: | C57: =STAVBA!$C$17 -> 914 | D57: m3
B59: Cenový ukazatel/ZPVP: | C59: =IF(C54=List1!E37,List1!E38,0) -> 1077 | D59: Kč/m2
B60: Cenový ukazatel/OP: | C60: =IF(C54=List1!E37,List1!E39,0) -> 302 | D60: Kč/m3
B62: Cena za ZPVP: | C62: =IF(C53="Cenový ukazatel",C56*C59,"") -> 271404 | D62: Kč | E62: Celková vlastní cena: | G62: Kč
B63: Cena za OP: | C63: =IF(C53="Cenový ukazatel",C57*C60,"") -> 276028 | D63: Kč
B64: Cena průměr: | C64: =IF(C53="Cenový ukazatel",(C62+C63)/COUNT(C62:C63),"") -> 273716 | D64: Kč
B66: Celková cena za slaboproud: | C66: =IF(C53="Cenový ukazatel",C64,IF(C53="Vlastní cena",F62,0)) -> 273716 | D66: Kč
B68: ZDRAVOTECHNICKÉ INSTALACE
B70: Při výpočtu pomocí cenového ukazatele je na výběr ze dvou variant zdravotechnických instalací - vnitřní vodovod a kanalizace bez vnitřního plynovodu a nebo vnitřní vodovod a kanalizace s vnitřním plynovodem.
B74: Součástí ceny nejsou zařizovací předměty, součástí ceny je vnitřní plynovod, vnitřní kanalizace dešťová a splašková, případně vnitřní plynovod.
B79: Výpočet ceny: | C79: Cenový ukazatel
B80: Varianta: | C80: ZTI - bez plynu
B82: Počet koupelen: | C82: =STAVBA!$C$22 -> 2 | D82: ks
B84: Cenový ukazatel/ks: | C84: =IF(C80=List1!F37,List1!F39,List1!F40) -> 46597 | D84: Kč/ks
B86: Cena za ZTI: | C86: =IF(C79="Cenový ukazatel",C82*C84,"") -> 93194 | D86: Kč | E86: Celková vlastní cena: | G86: Kč
B88: Celková cena za ZTI: | C88: =IF(C79="Cenový ukazatel",C86,IF(C79="Vlastní cena",F86,0)) -> 93194 | D88: Kč
B90: ZAŘIZOVACÍ PŘEDMĚTY ZTI
B92: Při výpočtu pomocí cenového ukazatele je na výběr ze dvou variant zařizovacích předmětů - standardní a nadstandardní.
B96: Součástí ceny je dodávka a montáž zařizovacích předmětů. Varianty se liší pořizovací cenou předmětů.
B101: Výpočet ceny: | C101: Cenový ukazatel
B102: Varianta: | C102: Standardní zařizovací předměty
B104: Počet koupelen: | C104: =STAVBA!$C$22 -> 2 | D104: ks
B106: Cenový ukazatel/ks: | C106: =IF(C102=List1!H37,List1!H39,IF(C102=List1!H38,List1!H40,0)) -> 84260 | D106: Kč/ks
B108: Cena za zařizovací předměty: | C108: =IF(C101="Cenový ukazatel",C104*C106,"") -> 168520 | D108: Kč | E108: Celková vlastní cena: | G108: Kč
B110: Celková cena za zařizovací předměty: | C110: =IF(C101="Cenový ukazatel",C108,IF(C101="Vlastní cena",F108,0)) -> 168520 | D110: Kč
B112: ÚSTŘEDNÍ TOPENÍ
B114: Při výpočtu pomocí cenového ukazatele je na výběr ze dvou variant ústředního vytápění - plynový kondenzační kotel a tepelné čerpadlo.
B118: Obě varianty ústředního vytápění nezahrnují cenu za otopná tělesa, rozvody topení a rozvody podlahového topení.
B123: Výpočet ceny: | C123: Cenový ukazatel
B124: Varianta: | C124: Tepelné čerpadlo
B126: Zastavěná plocha všech podlaží: | C126: =STAVBA!$C$18 -> 252 | D126: m2
B127: Obestavěný prostor: | C127: =STAVBA!$C$17 -> 914 | D127: m3
B129: Cenový ukazatel/ZPVP: | C129: =IF(C124=List1!J37,List1!J39,IF(C124=List1!J38,List1!J41)) -> 1799.556881 | D129: Kč/m2
B130: Cenový ukazatel/OP: | C130: =IF(C124=List1!J37,List1!J40,IF(C124=List1!J38,List1!J42)) -> 509 | D130: Kč/m3
B132: Cena za ZPVP: | C132: =IF(C123="Cenový ukazatel",C126*C129,"") -> 453488.334 | D132: Kč | E132: Celková vlastní cena: | G132: Kč
B133: Cena za OP: | C133: =IF(C123="Cenový ukazatel",C127*C130,"") -> 465226 | D133: Kč
B134: Cena průměr: | C134: =IF(C123="Cenový ukazatel",(C132+C133)/COUNT(C132:C133),"") -> 459357.167 | D134: Kč
B136: Celková cena za ústřední topení: | C136: =IF(C123="Cenový ukazatel",C134,IF(C123="Vlastní cena",F132,0)) -> 459357.167 | D136: Kč
B138: ROZVODY TOPENÍ A OTOPNÁ TĚLESA
B140: Při výpočtu pomocí cenového ukazatele je na výběr ze dvou variant rozvodů topení a otopných těles - vytápění pomocí otopných těles a vytápění podlahovým vytápěním.
B144: Součástí ceny podlahového vytápění jsou lokální otopná tělesa, koupelnové žebříky a jejich rozvody.
B149: Výpočet ceny: | C149: Cenový ukazatel
B150: Varianta: | C150: Podlahové vytápění
B152: Zastavěná plocha všech podlaží: | C152: =STAVBA!$C$18 -> 252 | D152: m2
B153: Obestavěný prostor: | C153: =STAVBA!$C$17 -> 914 | D153: m3
B155: Cenový ukazatel/ZPVP: | C155: =IF(C150=List1!L37,List1!L39,IF(C150=List1!L38,List1!L41,0)) -> 1056 | D155: Kč/m2
B156: Cenový ukazatel/OP: | C156: =IF(C150=List1!L37,List1!L40,IF(C150=List1!L38,List1!L42,0)) -> 296 | D156: Kč/m3
B158: Cena za ZPVP: | C158: =IF(C149="Cenový ukazatel",C152*C155,"") -> 266112 | D158: Kč | E158: Celková vlastní cena: | G158: Kč
B159: Cena za OP: | C159: =IF(C149="Cenový ukazatel",C153*C156,"") -> 270544 | D159: Kč
B160: Cena průměr: | C160: =IF(C149="Cenový ukazatel",(C158+C159)/COUNT(C158:C159),"") -> 268328 | D160: Kč
B162: Celková cena za rozvody t. a otopná tělesa: | C162: =IF(C149="Cenový ukazatel",C160,IF(C149="Vlastní cena",F158,0)) -> 268328 | D162: Kč
B164: VZDUCHOTECHNIKA
B166: Při výpočtu pomocí cenového ukazatele je na výběr pouze jedna varianta vzduchotechniky.
B170: Součástí ceny je veškeré trubní vedení, technické vybavení a zařízení. Cena za chlazení není součástí tohoto oddílu.
B175: Výpočet ceny: | C175: Cenový ukazatel
B176: Varianta: | C176: =List1!O37 -> Vzduchotechnika
B178: Zastavěná plocha všech podlaží: | C178: =STAVBA!$C$18 -> 252 | D178: m2
B179: Obestavěný prostor: | C179: =STAVBA!$C$17 -> 914 | D179: m3
B181: Cenový ukazatel/ZPVP: | C181: =IF(C176=List1!O37,List1!O39,0) -> 208 | D181: Kč/m2
B182: Cenový ukazatel/OP: | C182: =IF(C176=List1!O37,List1!O40,0) -> 60 | D182: Kč/m3
B184: Cena za ZPVP: | C184: =IF(C175="Cenový ukazatel",C178*C181,"") -> 52416 | D184: Kč | E184: Celková vlastní cena: | G184: Kč
B185: Cena za OP: | C185: =IF(C175="Cenový ukazatel",C179*C182,"") -> 54840 | D185: Kč
B186: Cena průměr: | C186: =IF(C175="Cenový ukazatel",(C184+C185)/COUNT(C184:C185),"") -> 53628 | D186: Kč
B188: Celková cena za vzduchotechniku: | C188: =IF(C175="Cenový ukazatel",C186,IF(C175="Vlastní cena",F184,0)) -> 53628 | D188: Kč
B190: CHLAZENÍ
B192: Při výpočtu pomocí cenového ukazatele je na výběr pouze jedna varianta chlazení.
B196: Součástí ceny je dodávka a montáž veškerého vedení, technického vybavení a zařízení.
B201: Výpočet ceny: | C201: Cenový ukazatel
B202: Varianta: | C202: =List1!R37 -> Chlazení
B204: Zastavěná plocha všech podlaží: | C204: =STAVBA!$C$18 -> 252 | D204: m2
B205: Obestavěný prostor: | C205: =STAVBA!$C$17 -> 914 | D205: m3
B207: Cenový ukazatel/ZPVP: | C207: =IF(C202=List1!R37,List1!R39,0) -> 846 | D207: Kč/m2
B208: Cenový ukazatel/OP: | C208: =IF(C202=List1!R37,List1!R40,0) -> 243 | D208: Kč/m3
B210: Cena za ZPVP: | C210: =IF(C201="Cenový ukazatel",C204*C207,"") -> 213192 | D210: Kč | E210: Celková vlastní cena: | G210: Kč
B211: Cena za OP: | C211: =IF(C201="Cenový ukazatel",C205*C208,"") -> 222102 | D211: Kč
B212: Cena průměr: | C212: =IF(C201="Cenový ukazatel",(C210+C211)/COUNT(C210:C211),"") -> 217647 | D212: Kč
B214: Celková cena za chlazení: | C214: =IF(C201="Cenový ukazatel",C212,IF(C201="Vlastní cena",F210,0)) -> 217647 | D214: Kč

Sheet VLASTNÍ CENA
B2: CELKOVÁ VLASTNÍ CENA ZA DALŠÍ ČÁSTI NEOBSÁHLÉ V NÁSTROJI
C5: POPIS:
D11: CELKOVÁ VLASTNÍ CENA : | F11: Kč

Sheet Nápověda
A1: Obestavěný prostor dle ISO 73 4055. Celkový obestavěný prostor = objem základů + objem podzemní částí objektu + objem nadzemní části objektu + objem zastřešení. Objekt je vymezen vnějšími plochami konstrukcí. | E1: Pro zjednodušenní, průměrná plocha teras na střechách rodinných domů je 50 m2.
A7: Zastavěná plocha dle ISO 734 055. Plocha ohraničená pravoúhlým průmětem vnějšího líce obvodových svislých konstrukcí všech nadzemních podlaží. Zastavěná plocha všech podlaží je součet jednotlivých zastavěných ploch všech podlaží objektu. | E7: Pro zjednodušenní, průměrná plocha vnějších výplní rodinných domů je 95 m2.
A13: Zastavěná plocha šikmé střechy. Plocha ohraničená pravoúhlým průmětěm střešní konstrukce do vodorovné roviny. | E13: Zastavěná plocha ploché střechy. Plocha ohraničená pravoúhlým průmětěm vnějšího líce obvodových konstrukcí střechy do vodorovné roviny.
A19: Náklady na umístění stavby. Náklady na zařízení staveniště (buňky, sklady, oplocení apod.), náklady spojené s územnímy vlivy (ztížené výrobní podmínky, extrémní klimatické podmínky, ztížené dopravní podmínky apod.), náklady na dopravu zaměstnanců zhotovitele apod. | E19: Kompletační činností vznikají náklady např. na zajištění zařízení staveniště pro subdodavatele, koordinace práce subdodavatelů, zpracovnání dokumentace skutečného provedení stavby apod.
A25: Rezerva slouží pro nepředvídatelné náklady.

Sheet List1 (hidden)
A1: Výpočet ceny | B1: Cenový ukazatel | C1: Zemní práce | D1: Podsklepený objekt, objekt v terénu | E1: Základy | F1: Pasy z prostého betonu, železobetonová deska | G1: Svislé | H1: N: Porotherm, P: Pórobeton | I1: vodorovné | J1: Železobetonová deska
B2: Vlastní cena | D2: Nepodsklepený objekt | F2: Pasy z železobetonu/ztracené bednění, železobetonová deska | H2: N: Železobeton, P: Porotherm | J2: 2855
B3: Bez ceny | C3: POD | D3: 2789.237732 | E3: pros | F3: 1063.337461 | H3: N: Porotherm, P: Porotherm | J3: 818.1805355
C4: POD | D4: 802.7880317 | E4: pros | F4: 342.7244839 | G4: PP | H4: 1972.22274
C5: NEPOD | D5: 657.6505804 | E5: žb | F5: 1895.006974 | G5: PP | H5: 538.8078097
A6: DPH | B6: 15 | C6: NEPOD | D6: 181 | E6: žb | F6: 524.9165324 | G6: ŽP | H6: 3496
B7: 21 | G7: ŽP | H7: 1127
A8: kompl. činnost | B8: 0.8 | G8: PP | H8: 3144.687199
B9: 0.9 | G9: PP | H9: 888.3876811
B10: 1 | C10: Schodiště | D10: Žb schodiště, dřevěný obklad stupňů, zábradlí | E10: vnitřní úprava | F10: Vápenocementová a sádrová omítka | G10: Vnější úprava | H10: Kontaktní zateplovací systém, omítka | I10: Hrubá podlaha | J10: Betonová mazanina a tepelná izolace | K10: PŘESUN | L10: Přesun hmot HSV
B11: 1.1 | D11: Ocelové schodiště přímé, dřevěný obklad stupňů, zábradlí | F11: 852 | H11: Fasádní omítka | J11: Betonová mazanina, kari síť/skelné vlákno a tepelná izolace
B12: 1.2 | D12: Ocelové schodiště točité, dřevěný obklad stupňů, zábradlí | F12: 243 | G12: KZS | H12: 2555.199212 | I12: BTI | J12: 625 | L12: 2173
B13: 1.3 | C13: žb | D13: 2042 | G13: KZS | H13: 710.242665 | I13: BTI | J13: 164 | L13: 619
B14: 1.4 | C14: žb | D14: 558 | G14: O | H14: 1529.5865 | I14: PKT | J14: 736
B15: 1.5 | C15: op | D15: 657 | G15: O | H15: 494.9058774 | I15: PKT | J15: 238
B16: 1.6 | C16: op | D16: 185
B17: 1.7 | C17: ot | D17: 1683
B18: 1.8 | C18: ot | D18: 543
B19: 1.9
B20: 2 | C20: Izolace proti vodě | D20: Podsklepený objek, objekt v terénu | E20: Plochá střecha | F20: Plochá střecha | G20: šikmá střecha | H20: Šikmá střecha | I20: SDK podkroví | J20: Podkrovní podhled SDK
B21: 2.1 | D21: Nepodsklepený objekt | F21: Plochá střecha se substrátem pro extenzivní střechu
B22: 2.2 | C22: POD | D22: 569 | E22: PS | F22: 5991 | H22: 8916 | J22: 1115
B23: 2.3 | C23: POD | D23: 162
B24: 2.4 | C24: NEPOD | D24: 451 | E24: PES | F24: 6206
B25: 2.5 | C25: NEPOD | D25: 128
A26: REZERVA | B26: 5
B27: 5.5 | C27: SDK podhled | D27: Podhled SDK | E27: terasa | F27: Dřevěná terasa na střeše | G27: Vnější výplně | H27: Dřevěné | I27: Vnější žaluzie | J27: Vnější hliníkové předokenní žaluzie | K27: Vstupní | L27: Vstupní dveře - hliníkové | O27: Garážové | P27: Standardní garážová vrata | S27: vnitřní výplně | T27: Vnitřní dveře standardní
B28: 6 | D28: 394 | E28: průměrná | F28: 4068 | H28: Hliníkové/dřevohliníkové | L28: Vstupní dveře - dřevěné | P28: Velká garážová vrata | T28: Vnitřní dveře nadstandardní
B29: 6.5 | D29: 112 | H29: Plastové | L29: Vstupní dveře - plastové | P29: 50858 | T29: 20519
B30: 7 | G30: d | H30: 7820 | J30: 516 | L30: 116637 | P30: 178183 | T30: 33065
G31: h | H31: 14530 | J31: 142 | L31: 72311
G32: p | H32: 5680 | L32: 40709
C33: Keramické dlažby | D33: Podlahy z keramických dlaždic - standard | E33: Dřevěné | F33: Dřevěné podlahy | G33: Lité podlahy | H33: Lité podlahy | J33: Keramické obklady - standard | L33: Cihelný oklad | O33: Venkovní obklad Alucobond | S33: malby | T33: Dvojnásobná bílá malba
D34: Podlahy z keramických dlaždic - nadstandard | F34: 790 | H34: 120 | J34: Keramické obklady - nadstandard | L34: 1478 | O34: 1961 | T34: 143
D35: 57794 | F35: 232 | H35: 35 | J35: 40340.91129 | L35: 392 | O35: 632 | T35: 41
D36: 85399 | J36: 71673.0031
D37: Silnoproud | E37: Slaboproud | F37: ZTI - s plynem | G37: zp | H37: Standardní zařizovací předměty | I37: ÚT | J37: Kondenzační plynový kotel | K37: ot | L37: Radiátory | N37: vzt | O37: Vzduchotechnika | R37: Chlazení
D38: 1212 | E38: 1077 | F38: ZTI - bez plynu | H38: Nadstandardní zařizovací předměty | J38: Tepelné čerpadlo | L38: Podlahové vytápění
D39: 341 | E39: 302 | F39: 131849 | H39: 84260 | J39: 1140 | L39: 1025 | O39: 208 | R39: 846
F40: 46597 | H40: 132135 | J40: 311 | L40: 280 | O40: 60 | R40: 243
J41: 1799.556881 | L41: 1056
J42: 509 | L42: 296
